bitfinex-derivatives/quotes_ETHF0:USTF0_20250116
["timestamp","ask_amount","ask_price","bid_price","bid_amount"]
[1736992851956,0.58746,3404.3,3404.0,0.9381]
[1736992851957,0.4697,3404.5,3404.0,0.4486]
[1736992852153,0.58749,3404.1,3404.0,0.4486]
[1736992853054,0.58753,3403.9,3403.8,3.2078]
[1736992853258,0.58754,3403.8,3403.7,1.195]
[1736992853460,1.04784,3403.8,3403.7,1.195]
[1736992855153,0.4603,3403.8,3403.3,3.2078]
[1736992855357,0.5876,3403.5,3403.4,1.195]
[1736992856459,0.58761,3403.4,3403.3,3.2078]
[1736992856856,0.58761,3403.4,3403.3,4.4028]
[1736992858560,0.58761,3403.4,3403.3,3.2078]
[1736992858856,2.82996702,3403.7,3402.8,4.1186]
[1736992859056,0.58768,3403.0,3402.9,1.195]
[1736992859257,0.5877,3402.9,3402.8,4.1186]
[1736992859463,0.5877,3402.9,3402.8,5.3136]
[1736992860066,2.35656702,3403.4,3402.7,11.777]
[1736992860261,0.58772,3402.8,3402.7,1.195]
[1736992860968,3.6791,3403.5,3402.7,1.195]
[1736992861167,0.58767,3403.1,3402.8,3.2078]
[1736992861368,3.6791,3403.5,3402.8,3.2078]
[1736992861669,0.5877,3402.9,3402.8,3.2078]
[1736992862263,0.58772,3402.8,3402.7,1.195]
[1736992862863,0.58772,3402.8,3402.4,4.1357]
[1736992862864,2.35656702,3403.4,3402.5,1.195]
[1736992863067,0.58776,3402.6,3402.4,4.1357]
[1736992863268,0.58777,3402.5,3402.4,3.2078]
[1736992863466,1.05617,3402.5,3402.4,3.2078]
[1736992864571,1.05617,3402.5,3402.4,3.6905]
[1736992864963,0.4684,3402.5,3402.4,3.6905]
[1736992865360,0.58774,3402.7,3402.4,3.6905]
[1736992865570,2.93671,3405.0,3402.4,3.6905]
[1736992865571,3.2078,3403.6,3402.6,2.35656702]
[1736992865774,0.58768,3403.0,3402.8,3.2078]
[1736992865966,0.4817,3403.5,3402.8,3.2078]
[1736992866164,3.2078,3403.6,3402.9,43.15656702]
[1736992866371,3.2078,3403.6,3403.0,1.195]
[1736992866668,0.58761,3403.4,3403.0,2.26386]
[1736992866871,0.58764,3403.3,3403.0,1.6762]
[1736992867472,0.58764,3403.3,3403.0,2.26388]
[1736992867980,0.58762,3403.4,3403.1,0.58766]
[1736992868182,0.58764,3403.3,3403.0,1.6762]
[1736992868377,0.58765,3403.2,3403.0,1.6762]
[1736992869073,0.9134,3403.5,3403.0,1.195]
[1736992869278,0.58766,3403.1,3403.0,1.195]
[1736992871375,0.9134,3403.5,3403.0,1.195]
[1736992871576,0.462,3403.5,3403.2,0.58765]
[1736992871884,0.462,3403.5,3403.3,0.4424]
[1736992872084,0.462,3403.5,3403.3,0.8867]
[1736992872270,1.04961,3403.5,3403.3,1.3741]
[1736992872578,0.462,3403.5,3403.3,1.3741]
[1736992872783,1.0496,3403.5,3403.3,1.3741]
[1736992872972,0.462,3403.5,3403.3,1.3741]
[1736992873477,1.0496,3403.5,3403.3,1.3741]
[1736992873984,0.462,3403.5,3403.3,1.3741]
[1736992874685,0.58753,3403.9,3403.6,0.58757]
[1736992874884,3.79531,3404.0,3403.6,0.58757]
[1736992875083,1.06209,3404.2,3403.8,0.58754]
[1736992875278,1.06209,3404.2,3403.9,1.409]
[1736992875479,0.4746,3404.2,3403.9,1.409]
[1736992875675,3.79523,3404.5,3404.2,0.58746]
[1736992875885,3.2078,3404.5,3404.1,2.35656702]
[1736992876278,3.79522,3404.5,3404.2,0.58747]
[1736992876477,3.2078,3404.5,3404.3,0.58744]
[1736992876687,3.2078,3404.5,3404.2,0.58747]
[1736992877781,0.4746,3404.6,3404.1,2.35656702]
[1736992877978,3.2078,3406.1,3404.5,2.2035]
[1736992878182,0.58722,3405.7,3405.2,2.35656702]
[1736992878386,0.5872,3405.8,3405.4,0.58726]
[1736992878580,0.58723,3405.7,3405.2,2.94386702]
[1736992878893,0.58723,3405.7,3405.3,1.194]
[1736992879188,0.58723,3405.7,3405.3,1.78128]
[1736992879482,0.4476,3406.0,3405.5,2.35656702]
[1736992880184,1.03478,3406.0,3405.5,2.94381702]
[1736992880779,0.4476,3406.0,3405.5,2.35656702]
[1736992881083,0.4476,3406.0,3405.4,3.693]
[1736992881084,0.58724,3405.6,3405.4,3.2078]
[1736992881281,0.4476,3406.0,3405.4,4.4018]
[1736992881482,0.58722,3405.7,3405.4,4.4018]
[1736992881786,0.4476,3406.0,3405.4,3.2078]
[1736992882791,0.58724,3405.6,3405.4,3.2078]
[1736992883388,0.58725,3405.5,3405.4,3.2078]
[1736992883588,0.58718,3405.9,3405.4,3.2078]
[1736992883790,0.58724,3405.6,3405.4,3.2078]
[1736992884390,0.58722,3405.7,3405.4,3.2078]
[1736992884588,0.58725,3405.6,3405.4,3.2078]
[1736992885085,0.58724,3405.6,3405.4,3.2078]
[1736992885293,0.58725,3405.5,3405.4,3.2078]
[1736992885987,0.9123,3406.0,3405.2,5.75406702]
[1736992886383,0.58727,3405.4,3405.2,5.75406702]
[1736992888493,0.58728,3405.3,3405.2,3.3975]
[1736992889192,0.58728,3405.3,3405.2,2.2035]
[1736992890382,5.56436702,3405.5,3404.7,1.193]
[1736992890593,0.58737,3404.9,3404.7,1.193]
[1736992890792,0.58737,3404.8,3404.7,1.193]
[1736992891889,0.58737,3404.8,3404.5,3.6862]
[1736992891890,0.58741,3404.6,3404.5,3.6862]
[1736992892190,3.2078,3405.1,3404.5,3.6862]
[1736992892491,3.2078,3405.1,3404.8,0.58735]
[1736992892684,1.07231,3405.2,3404.8,0.58735]
[1736992893293,0.485,3405.2,3404.7,2.35656702]
[1736992893492,0.58735,3405.0,3404.7,2.35656702]
[1736992894092,0.485,3405.2,3404.7,2.35656702]
[1736992894291,0.58734,3405.0,3404.7,2.35656702]
[1736992894595,0.58738,3404.8,3404.6,0.4541]
[1736992894993,0.58739,3404.7,3404.6,0.4541]
[1736992896200,0.58738,3404.8,3404.6,0.4541]
[1736992898996,0.58739,3404.7,3404.6,0.4541]
[1736992899792,0.4677,3405.1,3404.5,3.6862]
[1736992899793,0.58741,3404.6,3404.5,3.6862]
[1736992900002,0.58741,3404.6,3404.5,3.2078]
[1736992901901,0.58744,3404.4,3404.3,1.193]
[1736992903001,0.4792,3404.5,3404.3,1.193]
[1736992903196,1.06663,3404.5,3404.3,1.193]
[1736992903500,1.06663,3404.5,3404.2,1.05787]
[1736992903696,1.06663,3404.5,3404.2,2.25087]
[1736992903898,1.06663,3404.5,3404.2,1.6634]
[1736992904298,0.58741,3404.6,3404.2,2.25087]
[1736992905006,0.58743,3404.5,3404.2,2.25087]
[1736992905203,3.2078,3404.8,3404.2,1.6634]
[1736992905509,0.58754,3403.8,3403.7,40.8]
[1736992905805,3.2078,3403.9,3403.2,3.2078]
[1736992905996,0.58763,3403.3,3403.2,3.2078]
[1736992907201,0.9488,3403.8,3403.2,3.2078]
[1736992907404,0.58763,3403.4,3403.2,3.2078]
[1736992908411,0.9488,3403.8,3403.2,3.2078]
[1736992908412,0.58763,3403.3,3403.2,3.2078]
[1736992909608,0.58774,3402.7,3402.5,3.2078]
[1736992909814,0.58771,3402.9,3402.5,4.26907]
[1736992910008,0.58771,3402.9,3402.5,5.46206]
[1736992910411,0.4477,3403.2,3402.5,5.46206]
[1736992910715,0.58773,3402.8,3402.5,4.8743]
[1736992911010,0.4477,3403.2,3402.5,3.6813]
[1736992911214,0.58775,3402.6,3402.5,4.8753]
[1736992911410,0.58775,3402.6,3402.5,3.2078]
[1736992911612,0.58785,3402.0,3401.9,3.2078]
[1736992911810,2.35656702,3402.1,3401.4,8.27437856]
[1736992912015,0.58792,3401.7,3401.4,8.27437856]
[1736992912209,2.35656702,3402.1,3401.4,8.27437856]
[1736992912408,0.58794,3401.6,3401.4,8.27437856]
[1736992912909,0.58794,3401.6,3401.4,3.6696]
[1736992914613,3.2078,3402.2,3401.4,3.6696]
[1736992914812,0.58793,3401.6,3401.4,3.6696]
[1736992915215,3.2078,3402.2,3401.4,3.6696]
[1736992915421,0.58792,3401.7,3401.4,3.6696]
[1736992915610,3.2078,3402.2,3401.4,3.6696]
[1736992915811,0.58792,3401.6,3401.4,3.6696]
[1736992917214,0.58792,3401.6,3401.4,0.4618]
[1736992918218,3.2078,3402.0,3401.4,0.4618]
[1736992918420,0.58791,3401.7,3401.4,0.4618]
[1736992920021,3.2078,3402.0,3401.4,0.4618]
[1736992920815,0.58792,3401.7,3401.4,0.4618]
[1736992921214,3.2078,3402.0,3401.4,0.4618]
[1736992921922,0.58792,3401.7,3401.4,0.4618]
[1736992922321,0.58792,3401.6,3401.2,6.37675792]
[1736992922523,0.58792,3401.6,3401.2,5.56436702]
[1736992923022,3.2078,3402.0,3401.2,5.56436702]
[1736992923623,0.58789,3401.8,3401.2,6.15234702]
[1736992923827,0.58792,3401.7,3401.2,6.15234702]
[1736992924324,0.58793,3401.6,3401.2,6.15234702]
[1736992924524,0.58798,3401.3,3401.2,3.2078]
[1736992924826,0.58804,3401.0,3400.8,3.2078]
[1736992925023,0.58803,3401.1,3400.8,3.2078]
[1736992925221,0.58804,3400.9,3400.8,3.2078]
[1736992925426,2.35656702,3401.0,3400.4,0.467]
[1736992925620,0.58811,3400.6,3400.4,0.467]
[1736992926016,3.6733,3401.1,3400.4,0.467]
[1736992926222,0.58811,3400.5,3400.4,0.467]
[1736992926424,0.5881,3400.6,3400.4,0.467]
[1736992926624,3.6733,3401.1,3400.4,0.467]
[1736992927225,0.58811,3400.6,3400.4,0.467]
[1736992928126,0.58809,3400.7,3400.4,0.467]
[1736992928332,0.58811,3400.5,3400.4,0.467]
[1736992928525,0.5881,3400.6,3400.4,0.467]
[1736992930135,0.58809,3400.7,3400.4,0.467]
[1736992930434,0.58811,3400.6,3400.4,0.467]
[1736992930638,3.6733,3401.1,3400.4,0.467]
[1736992930926,3.79581,3401.1,3400.7,2.94464702]
[1736992931136,3.2078,3401.1,3400.7,2.35656702]
[1736992931533,0.58803,3401.0,3400.7,2.35656702]
[1736992931738,0.4855,3401.2,3400.7,2.35656702]
[1736992931935,0.58811,3400.6,3400.4,0.467]
[1736992932135,0.58804,3400.9,3400.4,0.467]
[1736992932335,0.58809,3400.7,3400.4,0.467]
[1736992932536,3.2078,3401.0,3400.4,0.467]
[1736992932733,0.5881,3400.6,3400.4,0.467]
[1736992932941,3.2078,3401.0,3400.4,0.467]
[1736992933244,0.58809,3400.7,3400.4,0.467]
[1736992933444,0.58811,3400.6,3400.4,0.467]
[1736992934039,3.2078,3401.0,3400.4,0.467]
[1736992934245,0.58814,3400.4,3400.1,1.194]
[1736992934538,5.56436702,3401.0,3400.1,1.194]
[1736992934745,3.2078,3401.0,3400.1,3.55056702]
[1736992934939,0.58809,3400.7,3400.2,0.58817]
[1736992935138,0.58812,3400.5,3400.1,4.13873702]
[1736992936338,0.58811,3400.6,3400.2,0.58816]
[1736992936543,0.58811,3400.5,3400.1,4.13873702]
[1736992936738,3.2078,3401.0,3400.1,3.55056702]
[1736992936936,3.2078,3401.0,3400.7,2.35656702]
[1736992937139,0.4855,3401.2,3400.8,0.4728]
[1736992937439,0.4855,3401.2,3400.7,3.2078]
[1736992937638,5.56436702,3401.0,3400.2,2.1217]
[1736992937944,0.58813,3400.5,3400.2,1.6668]
[1736992938746,0.4874,3400.9,3400.2,1.6668]
[1736992939046,0.58811,3400.6,3400.2,2.25496]
[1736992939447,0.4874,3400.9,3400.2,1.6668]
[1736992939743,0.58811,3400.6,3400.2,2.25496]
[1736992940441,0.4531,3400.5,3400.2,2.25496]
[1736992940631,0.4531,3400.5,3400.3,0.58815]
[1736992940838,0.4531,3400.5,3400.2,2.25496]
[1736992941341,0.58815,3400.3,3400.2,0.4728]
[1736992941533,0.58821,3400.0,3399.7,3.2078]
[1736992941841,0.5883,3399.4,3399.3,3.2078]
[1736992942048,2.35656702,3400.1,3399.3,3.2078]
[1736992942248,0.5883,3399.4,3399.3,3.2078]
[1736992942547,0.4509,3400.0,3399.3,3.2078]
[1736992942746,0.58829,3399.5,3399.3,3.2078]
[1736992943240,0.5883,3399.4,3399.3,3.2078]
[1736992946140,0.58838,3399.0,3398.9,3.2078]
[1736992946339,2.35656702,3399.4,3398.4,2.35656702]
[1736992946340,0.4762,3399.3,3398.7,1.194]
[1736992946540,0.58837,3399.1,3398.7,1.194]
[1736992947543,0.4762,3399.3,3398.8,0.5884]
[1736992947544,1.06453,3399.3,3398.8,0.5884]
[1736992947747,0.58834,3399.2,3398.7,1.78242]
[1736992947941,3.2078,3399.4,3399.1,0.58834]
[1736992948242,1.04398,3399.6,3399.2,0.9273]
[1736992950142,1.04398,3399.6,3399.3,3.2078]
[1736992951950,0.58829,3399.5,3399.3,3.2078]
[1736992952153,1.04398,3399.6,3399.3,3.2078]
[1736992952751,3.79604,3399.8,3399.4,0.5883]
[1736992952946,3.2078,3399.8,3399.3,3.2078]
[1736992953145,3.2078,3399.8,3399.5,0.58828]
[1736992953439,0.9036,3400.3,3399.7,3.2078]
[1736992953440,3.2078,3400.2,3399.7,3.2078]
[1736992953644,3.2078,3400.2,3399.9,2.35656702]
[1736992953852,3.2078,3400.2,3400.1,0.58818]
[1736992954353,3.2078,3400.2,3400.0,0.4703]
[1736992954548,0.58812,3400.5,3400.0,0.4703]
[1736992954745,3.657,3400.8,3400.0,0.4703]
[1736992955051,0.58815,3400.4,3400.0,0.4703]
[1736992955451,0.58816,3400.3,3400.0,0.4703]
[1736992956450,0.58821,3400.0,3399.8,1.6727]
[1736992956752,0.58821,3400.0,3399.8,1.194]
[1736992956956,0.4801,3399.9,3399.8,1.194]
[1736992957250,0.4801,3399.9,3399.7,3.2078]
[1736992957447,0.4801,3399.9,3399.7,3.79605]
[1736992957648,0.4801,3399.9,3399.7,3.2078]
[1736992958149,0.58823,3399.8,3399.7,3.2078]
[1736992959759,1.06833,3399.9,3399.7,3.2078]
[1736992960259,0.58823,3399.8,3399.7,3.2078]
[1736992961453,1.06833,3399.9,3399.7,3.2078]
[1736992961757,0.58823,3399.8,3399.7,3.2078]
[1736992962162,1.06832,3399.9,3399.7,3.2078]
[1736992962354,0.4801,3399.9,3399.7,3.2078]
[1736992962663,0.58823,3399.8,3399.7,3.2078]
[1736992964158,0.4801,3399.9,3399.3,1.05031]
[1736992964462,0.58828,3399.6,3399.3,1.05031]
[1736992965351,0.58828,3399.6,3399.3,0.462]
[1736992966057,0.5883,3399.5,3399.2,0.4531]
[1736992966553,0.4801,3399.9,3399.2,0.4531]
[1736992966554,0.58831,3399.4,3399.2,0.4531]
[1736992966757,0.58831,3399.4,3399.1,4.4018]
[1736992966962,2.35656702,3399.7,3399.1,4.4018]
[1736992967159,0.5883,3399.5,3399.1,4.99015]
[1736992967458,2.35656702,3399.7,3399.1,3.2078]
[1736992967656,0.58831,3399.4,3399.1,3.2078]
[1736992967859,2.35656702,3399.7,3399.1,3.2078]
[1736992968258,0.58832,3399.4,3399.1,3.2078]
[1736992968461,2.35656702,3399.7,3399.0,2.1105]
[1736992968857,0.58839,3399.0,3398.7,4.4018]
[1736992969053,0.5884,3398.9,3398.7,3.2078]
[1736992969254,0.58841,3398.8,3398.7,3.2078]
[1736992969958,1.0449,3398.9,3398.7,3.2078]
[1736992970263,0.4565,3398.9,3398.7,3.2078]
[1736992970754,1.04489,3398.9,3398.5,0.58845]
[1736992970954,0.4565,3398.9,3398.4,1.6392]
[1736992971360,0.4565,3398.9,3398.6,0.58844]
[1736992971571,0.58838,3399.0,3398.6,0.58844]
[1736992971964,0.58838,3399.0,3398.7,0.58843]
[1736992972261,0.58832,3399.4,3398.8,0.58841]
[1736992972462,1.0598,3399.5,3399.1,0.58836]
[1736992972664,1.0598,3399.5,3399.2,0.466]
[1736992973360,0.4726,3399.6,3399.2,0.466]
[1736992973361,1.06087,3399.6,3399.3,0.58831]
[1736992973559,0.58824,3399.8,3399.4,0.58829]
[1736992973760,0.58824,3399.8,3399.5,0.58828]
[1736992974157,2.35656702,3400.0,3399.2,0.466]
[1736992974363,2.35656702,3400.0,3399.2,1.05433]
[1736992974563,0.58827,3399.7,3399.2,0.466]
[1736992974767,0.58827,3399.6,3399.3,0.58832]
[1736992975062,0.58827,3399.6,3399.2,0.466]
[1736992975063,2.35656702,3400.0,3399.2,0.466]
[1736992975261,0.58829,3399.5,3399.2,1.05433]
[1736992975461,0.58829,3399.6,3399.2,1.05433]
[1736992976066,0.58829,3399.5,3399.2,0.466]
[1736992976555,0.58827,3399.6,3399.2,1.05433]
[1736992977866,0.58829,3399.5,3399.2,0.466]
[1736992980666,2.35656702,3400.0,3399.2,0.466]
[1736992980868,0.58827,3399.6,3399.2,1.05433]
[1736992981059,2.35656702,3399.7,3399.2,0.466]
[1736992981259,0.58832,3399.3,3399.2,0.466]
[1736992982259,2.35656702,3399.7,3399.2,0.466]
[1736992982460,0.5883,3399.5,3399.2,0.466]
[1736992982968,0.58832,3399.3,3399.2,0.466]
[1736992983467,0.58831,3399.4,3399.2,0.466]
[1736992984270,0.58832,3399.3,3399.2,0.466]
[1736992984467,1.03332,3399.3,3399.2,0.466]
[1736992984970,2.82176702,3399.7,3399.2,0.466]
[1736992984971,0.58831,3399.4,3399.2,0.466]
[1736992985659,0.58832,3399.3,3399.2,0.466]
[1736992986161,0.58841,3398.9,3398.7,3.2078]
[1736992986366,2.38085,3399.7,3398.7,3.6531]
[1736992986367,0.58841,3398.8,3398.7,3.6531]
[1736992986564,2.35656702,3399.5,3398.7,3.6531]
[1736992986768,0.58834,3399.3,3398.7,3.6531]
[1736992987066,0.9102,3399.7,3398.7,3.6531]
[1736992987266,2.35656702,3399.5,3398.7,3.6531]
[1736992987459,0.58836,3399.1,3398.8,1.193]
[1736992987654,2.35656702,3399.5,3398.7,3.6531]
[1736992987855,0.9102,3399.7,3398.7,3.6531]
[1736992987856,0.445,3399.7,3399.1,3.2078]
[1736992988056,3.2078,3399.8,3399.2,0.9471]
[1736992988267,0.58827,3399.7,3399.2,0.9471]
[1736992988467,0.58827,3399.7,3399.3,1.03312]
[1736992988868,0.58824,3399.8,3399.3,1.03312]
[1736992989166,0.4661,3400.0,3399.3,1.03312]
[1736992989368,3.2078,3400.2,3399.5,3.2078]
[1736992989755,3.2078,3400.2,3399.5,4.4008]
[1736992989959,0.58818,3400.1,3399.7,0.58825]
[1736992990160,2.83376702,3400.4,3399.6,0.58825]
[1736992990365,3.2078,3400.3,3399.5,4.4008]
[1736992990962,0.58818,3400.1,3399.7,0.58824]
[1736992991167,3.2078,3400.3,3399.5,4.4008]
[1736992992063,0.58822,3400.0,3399.6,0.58826]
[1736992992272,2.35656702,3399.8,3399.5,3.2078]
[1736992992470,0.58827,3399.6,3399.5,3.2078]
[1736992992662,0.4584,3399.7,3399.3,0.4448]
[1736992992864,0.4584,3399.7,3399.2,4.60477856]
[1736992992865,2.35656702,3399.5,3399.2,4.60477856]
[1736992993167,0.58837,3399.1,3398.9,0.4813]
[1736992993358,2.35656702,3399.5,3398.9,0.4813]
[1736992993871,0.58835,3399.2,3398.9,0.4813]
[1736992994671,0.58834,3399.3,3398.9,0.4813]
[1736992994866,2.35656702,3399.5,3398.9,0.4813]
[1736992995071,0.58828,3399.6,3399.2,0.58833]
[1736992995775,0.4584,3399.7,3399.0,3.79616]
[1736992995966,0.58833,3399.3,3399.0,3.2078]
[1736992996165,0.4584,3399.7,3399.0,3.2078]
[1736992996367,0.4584,3399.7,3398.9,0.4813]
[1736992996368,0.58833,3399.3,3398.9,0.4813]
[1736992996975,0.58833,3399.3,3398.9,1.06969]
[1736992997166,2.35656702,3399.5,3398.9,0.4813]
[1736992997470,0.58836,3399.1,3398.9,0.4813]
[1736992998168,2.35656702,3399.5,3398.9,0.4813]
[1736992998467,0.58837,3399.1,3398.9,0.4813]
[1736992998672,0.58837,3399.0,3398.9,0.4813]
[1736992998967,0.58837,3399.0,3398.6,4.26204]
[1736992999169,2.35656702,3398.9,3398.6,3.2078]
[1736992999377,0.4509,3398.8,3398.6,3.2078]
[1736992999672,0.58843,3398.7,3398.6,3.2078]
[1736993000064,0.58838,3399.0,3398.6,3.79624]
[1736993000260,2.82946702,3399.1,3398.6,3.2078]
[1736993000471,0.58843,3398.7,3398.6,3.2078]
[1736993001183,0.4729,3399.1,3398.6,3.2078]
[1736993001473,0.4729,3399.1,3398.7,0.4555]
[1736993001474,0.58838,3399.0,3398.7,0.4555]
[1736993002872,0.4729,3399.1,3398.8,0.4675]
[1736993002873,1.06127,3399.1,3398.8,0.4675]
[1736993003068,0.58838,3399.0,3398.8,0.4675]
[1736993004276,0.4729,3399.1,3398.8,0.4675]
[1736993004871,0.58839,3399.0,3398.8,0.4675]
[1736993005064,1.06126,3399.1,3398.8,0.4675]
[1736993005375,0.4729,3399.1,3398.8,0.4675]
[1736993005674,0.58839,3399.0,3398.8,0.4675]
[1736993005868,0.4729,3399.1,3398.8,0.4675]
[1736993006070,0.58838,3399.0,3398.8,0.4675]
[1736993006271,0.58839,3398.9,3398.8,0.4675]
[1736993006581,0.58842,3398.8,3398.6,3.2078]
[1736993007468,0.58843,3398.7,3398.6,3.2078]
[1736993007667,2.82946702,3399.1,3398.6,3.2078]
[1736993007876,0.58843,3398.7,3398.6,3.2078]
[1736993008375,4.67874,3399.0,3398.2,3.6823]
[1736993008570,0.4675,3398.6,3398.2,3.6823]
[1736993008870,0.58847,3398.5,3398.2,4.27081]
[1736993009069,0.58847,3398.5,3398.2,3.6823]
[1736993009265,0.58848,3398.4,3398.2,3.6823]
[1736993009470,0.58847,3398.5,3398.2,3.6823]
[1736993010776,0.58844,3398.7,3398.3,0.58848]
[1736993011481,0.58842,3398.8,3398.4,0.58847]
[1736993011979,0.58843,3398.7,3398.3,0.58849]
[1736993012172,0.58843,3398.7,3398.4,0.58848]
[1736993012371,0.58843,3398.7,3398.2,3.6823]
[1736993012673,0.58843,3398.7,3398.3,0.58849]
[1736993013577,0.4729,3399.1,3398.2,6.03886702]
[1736993013782,0.58838,3399.0,3398.6,3.79623]
[1736993013976,0.58838,3399.0,3398.7,0.9066]
[1736993014375,0.58838,3399.0,3398.7,1.49502]
[1736993014584,1.06127,3399.1,3398.7,1.49502]
[1736993015086,0.58835,3399.2,3398.8,1.7814]
[1736993015290,0.58835,3399.2,3398.8,2.257]
[1736993015984,3.2078,3399.4,3399.0,0.58836]
[1736993015985,3.79611,3399.4,3399.0,0.58836]
[1736993016175,3.79611,3399.4,3399.1,0.58836]
[1736993016677,0.58832,3399.3,3399.2,0.4562]
[1736993021987,0.58834,3399.2,3399.1,3.2078]
[1736993023091,0.58837,3399.0,3398.9,1.6394]
[1736993023587,0.58841,3398.9,3398.7,3.2078]
[1736993023790,0.58841,3398.8,3398.7,3.2078]
[1736993023992,1.53651,3398.8,3398.7,3.2078]
[1736993025891,0.58843,3398.7,3398.6,0.4464]
[1736993026692,0.4751,3398.8,3398.6,0.4464]
[1736993027592,0.58843,3398.7,3398.6,0.4464]
[1736993030796,0.58844,3398.6,3398.5,3.2078]
[1736993032690,0.58851,3398.2,3398.1,3.2078]
[1736993032896,0.58853,3398.1,3397.7,5.08647856]
[1736993033098,2.35656702,3398.2,3397.7,5.08647856]
[1736993033099,1.04786,3398.0,3397.7,5.08647856]
[1736993033993,0.58854,3398.1,3397.7,5.67506856]
[1736993034188,0.4659,3398.4,3397.7,5.08647856]
[1736993034389,0.58856,3398.0,3397.7,0.4817]
[1736993034583,0.58855,3398.0,3397.7,0.4817]
[1736993035188,0.58853,3398.1,3397.7,0.4817]
[1736993035390,2.35656702,3398.2,3397.7,0.4817]
[1736993035690,0.58856,3398.0,3397.7,0.4817]
[1736993036296,0.58857,3397.9,3397.7,0.4817]
[1736993036494,2.35656702,3398.2,3397.7,0.4817]
[1736993036694,0.58855,3398.0,3397.7,0.4817]
[1736993037192,2.35656702,3398.2,3397.7,0.4817]
[1736993037193,0.58857,3397.9,3397.7,0.4817]
[1736993037390,0.58856,3398.0,3397.7,0.4817]
[1736993037590,0.58853,3398.1,3397.7,0.4817]
[1736993037982,0.58856,3398.0,3397.7,0.4817]
[1736993038182,0.4874,3398.3,3397.7,0.4817]
[1736993038183,2.35656702,3397.9,3397.7,0.4817]
[1736993038402,0.58866,3397.4,3397.2,5.79777856]
[1736993038693,0.58866,3397.4,3397.3,0.4841]
[1736993038891,0.58864,3397.5,3397.3,0.4841]
[1736993039093,1.3809,3397.8,3397.3,0.4841]
[1736993039286,0.58865,3397.4,3397.3,0.4841]
[1736993040499,0.58865,3397.4,3397.1,3.2078]
[1736993041694,1.3809,3397.8,3397.1,3.2078]
[1736993041897,0.58865,3397.4,3397.1,3.2078]
[1736993042189,1.3809,3397.8,3397.1,3.2078]
[1736993042190,2.35656702,3397.6,3397.1,3.2078]
[1736993042695,0.94,3397.8,3397.5,3.2078]
[1736993042901,3.2078,3398.0,3397.6,0.4843]
[1736993043099,0.58858,3397.8,3397.6,1.3781]
[1736993044004,0.5886,3397.7,3397.6,1.3781]
[1736993044295,0.5886,3397.7,3397.6,0.4843]
[1736993044602,0.58862,3397.6,3397.5,3.2078]
[1736993044899,0.58862,3397.6,3396.6,4.60477856]
[1736993044900,4.1462,3397.6,3396.6,4.60477856]
[1736993045200,2.94532702,3396.8,3396.6,4.60477856]
[1736993045398,0.58877,3396.7,3396.6,4.60477856]
[1736993046103,0.58874,3396.9,3396.4,4.28092]
[1736993046395,0.4599,3397.0,3396.4,3.6921]
[1736993046598,0.58871,3397.1,3396.5,0.58881]
[1736993046796,3.2078,3397.2,3396.5,0.58881]
[1736993046797,0.58873,3397.0,3396.5,0.58881]
[1736993047303,0.4518,3397.1,3396.4,3.6921]
[1736993047489,2.35656702,3397.3,3396.4,3.6921]
[1736993047693,1.15065401,3402.8,3397.2,5.56436702]
[1736993047694,3.2078,3398.1,3397.2,5.56436702]
[1736993047895,0.58857,3397.9,3397.6,3.2078]
[1736993048109,3.2078,3398.5,3397.6,3.2078]
[1736993048498,0.4844,3398.7,3398.1,3.2078]
[1736993048701,2.35656702,3399.3,3398.6,3.2078]
[1736993048902,0.58841,3398.8,3398.6,3.2078]
[1736993049102,0.58841,3398.8,3398.3,0.58848]
[1736993049299,0.5884,3398.9,3398.4,0.58847]
[1736993049500,0.5884,3398.9,3398.2,5.7972]
[1736993049701,5.56436702,3399.0,3398.2,5.7972]
[1736993049897,0.5884,3398.9,3398.3,0.58849]
[1736993050804,0.58842,3398.8,3398.2,5.7972]
[1736993051104,0.58841,3398.8,3398.3,0.58848]
[1736993051305,5.56436702,3399.0,3398.2,6.38571]
[1736993051704,0.58842,3398.8,3398.3,0.58849]
[1736993052404,0.58842,3398.8,3398.2,5.7972]
[1736993052705,0.58842,3398.8,3398.3,0.58849]
[1736993053007,0.58839,3398.9,3398.4,0.58847]
[1736993053808,3.2078,3399.0,3398.2,5.7972]
[1736993054107,3.2078,3399.0,3398.6,3.2078]
[1736993054311,3.2078,3399.0,3398.7,0.4687]
[1736993055098,0.58836,3399.1,3398.7,0.4687]
[1736993055305,0.58834,3399.2,3398.7,1.05712]
[1736993055506,2.35656702,3399.3,3398.7,0.4687]
[1736993055507,0.58836,3399.1,3398.7,0.4687]
[1736993056404,0.58838,3399.0,3398.7,0.4687]
[1736993056610,0.58837,3399.1,3398.7,0.4687]
[1736993057203,0.4834,3399.2,3398.7,0.4687]
[1736993057403,1.07174,3399.2,3398.7,0.4687]
[1736993057708,0.4834,3399.2,3398.7,1.05711]
[1736993058006,2.35656702,3399.3,3398.9,0.58839]
[1736993058308,4.27871,3399.4,3398.7,0.4687]
[1736993058309,3.2078,3399.4,3398.7,0.4687]
[1736993058510,2.35656702,3399.6,3399.1,0.58834]
[1736993058709,0.5883,3399.5,3399.2,0.4751]
[1736993059308,2.35656702,3399.6,3399.2,0.4751]
[1736993059309,2.94484702,3399.6,3399.2,0.4751]
[1736993059803,0.5883,3399.5,3399.2,0.4751]